Cogmind - Beta 12 @@@ ROGUE MODE // 2024.02.25 @ 12:33:40 Player: ChromeKnight Result: Destroyed by as-61874 with Assembled Blade Performance ------------- Evolutions (0) 0 Regions Visited (4) 800 Robots Destroyed (16) 80 Value Destroyed (202) 202 Prototype IDs (23) 460 Alien Tech Used (0) 0 Bonus (300) 300 TOTAL SCORE: 1842 Bonus ------- Aligned with FarCom 300 Cogmind --------- Core Integrity 0/250 Matter 261/300 Energy 100/100 System Corruption 0% Temperature Cool (0) Movement Hovering (77) Location -9/Mines Parts ------- > --- POWER (1) -------- (None) > --- PROPULSION (2) --- Combat Airjet Combat Airjet > --- UTILITY (2) ------ Large Storage Unit Launcher Guidance Computer > --- WEAPON (2) ------- Autogun > --- INVENTORY (15) --- Heat Sink High-capacity Matter Pod (200) Sensor Array 0b10 Alert Chip Launcher Guidance Computer Improved Light Armor Plating Latent Energy Streamer Autogun Autogun XL Autogun Array Grenade Launcher Peak State ------------ > --- POWER ------------ Ion Engine > --- PROPULSION ------- Combat Airjet Combat Airjet > --- UTILITY ---------- Large Storage Unit Launcher Guidance Computer > --- WEAPON ----------- Autogun Autogun > --- INVENTORY -------- Ion Engine Heat Sink High-capacity Matter Pod Sensor Array 0b10 Alert Chip Latent Energy Streamer Autogun Autogun XL Autogun Array [Rating: 26] Favorites ----------- Power Ion Engine Engine Ion Engine Propulsion Light Treads Treads Light Treads Leg Aluminum Leg Hover Unit Combat Airjet Utility Large Storage Unit Storage Large Storage Unit Processor Launcher Guidance Computer Weapon EM Shotgun Energy Gun EM Shotgun Ballistic Gun Autogun Build | -11 -10 -10 -10 -9 ------- Run | Jun Mat Min Exi Min Slots Evolved . | . . . . . Power . | . . . . . Propulsion . | . . . . . Utility . | . . . . . Weapon . | . . . . . Parts Attached 20 | 8 3 . 2 7 Power 2 | 1 . . . 1 Engine 2 | 1 . . . 1 Core . | . . . . . Reactor . | . . . . . Propulsion 7 | 4 . . . 3 Treads 3 | 2 . . . 1 Leg 2 | 2 . . . . Wheel . | . . . . . Hover 2 | . . . . 2 Flight . | . . . . . Utility 3 | 1 1 . . 1 Device . | . . . . . Storage 2 | 1 1 . . . Processor 1 | . . . . 1 Hackware . | . . . . . Protection . | . . . . . Artifact . | . . . . . Weapon 8 | 2 2 . 2 2 Energy Gun 4 | . 2 . 2 . Energy Cannon . | . . . . . Ballistic Gun 4 | 2 . . . 2 Ballistic Cannon . | . . . . . Launcher . | . . . . . Special Weapon . | . . . . . Impact Weapon . | . . . . . Slashing Weapon . | . . . . . Piercing Weapon . | . . . . . Special Melee Weapon . | . . . . . Unidentified Prototypes . | . . . . . Parts Lost 6 | . . . . 6 Power . | . . . . . Propulsion 3 | . . . . 3 Utility . | . . . . . Weapon 3 | . . . . 3 Highest Loss Streak 5 | . . . . 5 To Critical Strikes . | . . . . . Average Slot Usage (%) 85 | . 84 85 85 90 Engine 13 | . 14 14 14 13 Treads 25 | . 28 28 28 6 Hover 2 | . . . . 19 Storage 14 | . 14 14 14 14 Processor 1 | . . . . 9 Energy Gun 20 | . 3 28 28 2 Ballistic Gun 7 | . 23 . . 23 Naked Turns . | . . . . . Heaviest Build 31 | 13 31 31 31 31 Greatest Support 40 | 40 40 40 40 40 Greatest Overweight (x) 2 | . . . . 2 Average Overweight (x) . | . . . . . Largest Inventory Capacity 15 | 8 15 15 15 15 Average Capacity 13 | 7 9 15 15 15 Most Carried 15 | . 13 13 15 15 Average Carried 11 | . 5 13 13 13 Final Capacity 15 | 8 15 15 15 15 Final Carried 15 | . 13 13 15 14 Class Distribution -------------------- 91% | Mutant 8% | Scavenger-Mutant Dominant Class ---------------- Mutant | -10/Materials Mutant | -10/Mines Mutant | -10/Exiles Scavenger-Mutant | -9/Mines Resources | -11 -10 -10 -10 -9 ----------- Run | Jun Mat Min Exi Min Matter Collected 729 | 255 133 170 . 171 Remotely . | . . . . . Salvage Created 491 | 55 207 180 . 49 Parts 34 | 2 16 16 . . Haulers Intercepted . | . . . . . Recyclers Shooed 1 | . 1 . . . Parts Field Recycled . | . . . . . Retrieved Matter . | . . . . . Parts Self-Destructed . | . . . . . Prevented . | . . . . . Kills | -11 -10 -10 -10 -9 ------- Run | Jun Mat Min Exi Min Combat Hostiles Destroyed 13 | . 4 6 . 3 Guns 10 | . 4 3 . 3 AOE 3 | . . 3 . . Classes Destroyed 6 | 1 3 1 . 1 Builder 2 | . . 2 . . Recycler 3 | 1 1 1 . . Watcher 1 | . 1 . . . Swarmer 8 | . 2 6 . . Grunt 2 | . 2 . . . Assembled 3 | . . . . 3 Best Kill Streak 6 | 1 3 6 . 2 Combat Bots Only 3 | . 2 3 . 2 Max Kills in Single Turn 3 | 1 2 3 . 1 Gunslinging 1 | . 1 . . . Exploded 3 | . . 3 . . Melee . | . . . . . Uniques/NPCs Destroyed . | . . . . . Combat | -11 -10 -10 -10 -9 -------- Run | Jun Mat Min Exi Min Damage Taken 1227 | . 110 114 . 1003 Core 250 | . 11 15 . 224 Absorbed by Shields . | . . . . . Core Remaining (%) 100 | 100 . . . . Volleys Fired 51 | 5 13 9 . 24 Largest 2 | 2 2 2 . 2 Hottest 90 | 40 90 90 . 90 Shots Fired 92 | 10 26 18 . 38 Gun 92 | 10 26 18 . 38 Cannon . | . . . . . Launcher . | . . . . . Special . | . . . . . Kinetic 67 | 10 24 . . 33 Thermal . | . . . . . Explosive . | . . . . . Electromagnetic 25 | . 2 18 . 5 Robot Hit Streak 8 | 5 8 7 . 8 Robot Miss Streak 5 | 3 2 3 . 5 Penetration Max . | . . . . . Secondary Targets 3 | . 2 . . 1 Max Gunslinging Chain 1 | . 1 . . 1 Shots Hit Robots 62 | 6 19 14 . 23 Core Hits 36 | 2 9 13 . 12 Critical Kills . | . . . . . Critical Parts Destroyed . | . . . . . Critical Strikes . | . . . . . Melee Attacks . | . . . . . Impact . | . . . . . Slashing . | . . . . . Piercing . | . . . . . Sneak Attacks . | . . . . . Combat Hostiles . | . . . . . Follow-up Attacks . | . . . . . Damage Inflicted 907 | 66 221 272 . 348 Guns 808 | 66 221 173 . 348 Cannons . | . . . . . Explosions 91 | . . 91 . . Melee . | . . . . . Ramming 8 | . . 8 . . Kinetic 543 | 66 189 . . 288 Thermal 91 | . . 91 . . Explosive . | . . . . . Electromagnetic 265 | . 32 173 . 60 Impact . | . . . . . Slashing . | . . . . . Piercing . | . . . . . Highest Corruption . | . . . . . Average Corruption . | . . . . . Corruption Purged . | . . . . . Corruption Blocked . | . . . . . Overload Shots . | . . . . . Overflow Damage . | . . . . . Projectiles . | . . . . . Explosions . | . . . . . Melee . | . . . . . Knockbacks . | . . . . . Impact . | . . . . . Kinetic . | . . . . . Secondary . | . . . . . Self-Inflicted Damage 32 | . . 32 . . Shots 1 | . . 1 . . Rammed 1 | . . 1 . . Targets Rammed 1 | . . 1 . . Kicked . | . . . . . Crushed . | . . . . . Highest Temperature 120 | . 30 120 . 44 Average Temperature 27 | . 10 45 . 15 Received Heat Transfer 156 | . 36 . . 120 Siege Activations . | . . . . . Robots Corrupted . | . . . . . Combat Hostiles . | . . . . . Parts Fried 1 | . . 1 . . Impact Corruptions . | . . . . . Robots Melted . | . . . . . Combat Hostiles . | . . . . . Parts Melted . | . . . . . Heat Transferred 150 | . . 150 . . Parts Sabotaged . | . . . . . Parts Stolen . | . . . . . Parts Stripped . | . . . . . Power Chain Reactions 2 | . . 2 . . Missiles Intercepted . | . . . . . Alert | -11 -10 -10 -10 -9 ------- Run | Jun Mat Min Exi Min Peak Influence 226 | 5 135 226 . 15 Initial 52 | . 3 52 . . Average 44 | . 71 51 . . Maximum Alert Level 1 | . . 1 . . Low Security (%) 98 | 100 100 97 . 100 Level 1 1 | . . 2 . . Level 2 . | . . . . . Level 3 . | . . . . . Level 4 . | . . . . . Level 5 . | . . . . . High Security . | . . . . . Max Security . | . . . . . Squads Dispatched . | . . . . . Investigation . | . . . . . Extermination . | . . . . . Reinforcement . | . . . . . Assault . | . . . . . Garrison . | . . . . . Intercept . | . . . . . Searches Triggered . | . . . . . Construction Impeded . | . . . . . Haulers Reinforced . | . . . . . Active Scanning Responses . | . . . . . Cargo Convoy Interrupts . | . . . . . Stealth | -11 -10 -10 -10 -9 --------- Run | Jun Mat Min Exi Min Distress Signals . | . . . . . Communications Jammed . | . . . . . Distress Signals . | . . . . . Times Spotted 21 | . 7 5 . 9 Peak Tracking Total 6 | . 2 3 . 6 Tactical Retreats . | . . . . . Traps | -11 -10 -10 -10 -9 ------- Run | Jun Mat Min Exi Min Traps Triggered . | . . . . . Indirectly . | . . . . . Trap Hack Attempts . | . . . . . Triggered . | . . . . . Disarmed . | . . . . . Reprogrammed . | . . . . . Reused . | . . . . . Traps Extracted . | . . . . . Installed 5 | . . 5 . . Triggered . | . . . . . Machines | -11 -10 -10 -10 -9 ---------- Run | Jun Mat Min Exi Min Machines Disabled 1 | . . 1 . . Max in Single Turn 1 | . . 1 . . Machines Repaired . | . . . . . Machines Sabotaged . | . . . . . Overloaded Fab Kills . | . . . . . Hacking | -11 -10 -10 -10 -9 --------- Run | Jun Mat Min Exi Min Machines Accessed 1 | . . . 1 . Terminals . | . . . . . Fabricators . | . . . . . Repair Stations . | . . . . . Recycling Units . | . . . . . Scanalyzers . | . . . . . Garrison Access . | . . . . . Total Hacks 1 | . . . 1 . Successful 1 | . . . 1 . Failed . | . . . . . Catastrophic . | . . . . . Database Lockouts . | . . . . . Manual 1 | . . . 1 . Terminals . | . . . . . Fabricators . | . . . . . Repair Stations . | . . . . . Recycling Units . | . . . . . Scanalyzers . | . . . . . Garrison Access . | . . . . . Terminal Hacks 1 | . . . 1 . EX-Prototype ID Bank 1 | . . . 1 . Fabricator Hacks . | . . . . . Repair Station Hacks . | . . . . . Recycling Unit Hacks . | . . . . . Scanalyzer . | . . . . . Garrison Access Hacks . | . . . . . Unauthorized Hacks . | . . . . . Terminals . | . . . . . Fabricators . | . . . . . Repair Stations . | . . . . . Recycling Units . | . . . . . Scanalyzers . | . . . . . Garrison Access . | . . . . . Data Cores Recovered . | . . . . . Used . | . . . . . Hacking Detections . | . . . . . Full Trace Events . | . . . . . Feedback Events . | . . . . . Feedback Blocked . | . . . . . Robot Schematics Acquired . | . . . . . Robots Built . | . . . . . Authchips . | . . . . . Time . | . . . . . Total Robot Build Rating . | . . . . . Part Schematics Acquired . | . . . . . Parts Built . | . . . . . Authchips . | . . . . . Time . | . . . . . Total Part Build Rating . | . . . . . Parts Repaired . | . . . . . Time . | . . . . . Parts Recycled . | . . . . . Recycled Matter . | . . . . . Retrieved Matter . | . . . . . Retrieved Components . | . . . . . Parts Scanalyzed . | . . . . . Part Schematics Acquired . | . . . . . Parts Damaged . | . . . . . Bothacking | -11 -10 -10 -10 -9 ------------ Run | Jun Mat Min Exi Min Used RIF Installer . | . . . . . Robots Hacked . | . . . . . Non-combat . | . . . . . Combat . | . . . . . Robot Hacks Applied . | . . . . . Relay Couplers Released . | . . . . . Fabnet Peak Effective % . | . . . . . Robots Rewired . | . . . . . Allies Hacked . | . . . . . Hacks Repelled . | . . . . . Allies | -11 -10 -10 -10 -9 -------- Run | Jun Mat Min Exi Min Total Allies 1 | . . . . 1 Largest Group 1 | . . . . 1 Highest-Rated Group 31 | . . . . 31 Highest-Rated Ally 31 | . . . . 31 Total Orders . | . . . . . Ally Attacks 2 | . . . . 2 Total Damage 21 | . . . . 21 Kills . | . . . . . Allies Corrupted . | . . . . . Allies Melted . | . . . . . Intel | -11 -10 -10 -10 -9 ------- Run | Jun Mat Min Exi Min Robot Analysis Total . | . . . . . Derelict Logs Recovered 3 | . . 3 . . Drone Launches . | . . . . . Drone Recoveries . | . . . . . Exploration | -11 -10 -10 -10 -9 ------------- Run | Jun Mat Min Exi Min Turns Passed 1811 | 79 327 792 372 241 Spaces Moved 1023 | 41 170 472 228 112 Core 8 | 8 . . . . Treads 915 | 25 170 472 228 20 Legs 8 | 8 . . . . Wheels . | . . . . . Hover 92 | . . . . 92 Flight . | . . . . . Fastest Speed 50 | 50 160 160 160 147 Average Speed 158 | 130 160 160 160 154 Slowest Speed 240 | 160 160 160 160 240 Overloaded Moves . | . . . . . Propulsion Burnouts . | . . . . . Robots Hopped . | . . . . . Cave-ins Triggered . | . . . . . Exploration Rate (%) 42 | 3 35 84 61 31 Regions Visited 4 Branch Regions 3 Pre-discovered Areas 2 | . . 2 . . Known Exits Taken . | . . . . . Unknown Exits Taken 4 | 1 1 1 1 . Scrap Searched 3 | . . 1 . 2 Spaces Dug . | . . . . . Terrain Destroyed 9 | . . 9 . . Melee . | . . . . . Projectile . | . . . . . AOE 9 | . . 9 . . Terrain Rammed . | . . . . . Walls Destroyed . | . . . . . Machines Disabled . | . . . . . Actions | -11 -10 -10 -10 -9 --------- Run | Jun Mat Min Exi Min Total 1131 | 55 203 490 236 147 Wait 4 | . . 4 . . Move 1019 | 40 169 471 227 112 Hop . | . . . . . Pick Up 20 | . 14 . 3 3 Fast Attach 13 | 8 2 . . 3 Attach 4 | . 1 . . 3 Detach 1 | . 1 . . . Swap 3 | . . . 2 1 Drop 10 | 2 3 . 4 1 Fire 51 | 5 13 9 . 24 Melee . | . . . . . Ram . | . . . . . Kick . | . . . . . Crush 1 | . . 1 . . Escape Stasis . | . . . . . Rewire . | . . . . . Trap 5 | . . 5 . . Miscellaneous . | . . . . . Route ------- -11/Junkyard -10/Materials -10/Mines (discovered 3 exits: *Mat x2 / *Exi) -10/Exiles -9/Mines History --------- Turn | Location | Event 10 | -11/Junkyard | Discovered new exit (range 16) 80 | -11/Junkyard | Entered Materials 309 | -10/Materials | Build established: Mutant 335 | -10/Materials | Discovered new exit (range 15) 407 | -10/Materials | Entered Mines 502 | -10/Mines | Learned Materials stockpile data 527 | -10/Mines | Found a hidden stash of uninstalled traps 919 | -10/Mines | Identified exit to Materials 940 | -10/Mines | Learned location of Storage (-8) 941 | -10/Mines | Learned location of Mines (-9) 943 | -10/Mines | Discovered exit to Materials (range 14) 1192 | -10/Mines | Deemed a non-threat by the Exiles lab entrance 1192 | -10/Mines | Discovered new exit (range 5) 1199 | -10/Mines | Entered Exiles 1239 | -10/Exiles | Met 8R-AWN 1267 | -10/Exiles | Met EX-HEX 1310 | -10/Exiles | Met EX-BIN 1332 | -10/Exiles | Aligned with FarCom system 1334 | -10/Exiles | Given EX-Vault access code 1382 | -10/Exiles | Opened EX-Vault 1404 | -10/Exiles | Found 0b10 Alert Chip 1407 | -10/Exiles | Found Latent Energy Streamer 1414 | -10/Exiles | Found XL Autogun Array 1449 | -10/Exiles | Warned to stay clear of 0b10 Research branches 1500 | -10/Exiles | Met EX-DEC 1558 | -10/Exiles | Discovered new exit (range 10) 1571 | -10/Exiles | Stole three prototypes: 0b10 Alert Chip, Latent Energy Streamer, XL Autogun Array 1571 | -10/Exiles | Entered Mines 1574 | -9/Mines | Received a Mining Laser from a helpful Derelict 1582 | -9/Mines | Assembled infested the area 1587 | -9/Mines | Assisted by a Guerilla fighting off Assembled 1608 | -9/Mines | Core integrity fell below 50% 1624 | -9/Mines | Core integrity fell below 20% 1676 | -9/Mines | Lost 5 parts (3n2w) 1812 | -9/Mines | Destroyed by as-61874 with Assembled Blade Last Messages --------------- 01668_ Acquired 37 matter. 01669_ R-06 Scavenger collects Fission Core. 01670_ Acquired 32 matter. 01672_ R-06 Scavenger collects Flexi-carbon Leg. 01677_ The unstable cave ceiling collapses. 01679_ R-06 Scavenger collects Armor Integrity Analyzer. 01683_ Searching scrap... 01683_ Found Grenade Launcher. 01683_ Found Arm. Wheel. 01683_ Found Hcp. Storage Unit. 01683_ Found Lgt. Assault Rifle. 01683_ Found 32 Matter. 01693_ Searching scrap... 01693_ Found Sml. Storage Unit. 01693_ Found Imp. Hover Unit. 01693_ Found 19 Matter. 01704_ Acquired Grenade Launcher. 01797_ Critical hit (Burn: +80). 01799_ Autogun destroyed. 01804_ Ion Engine severed. Map ----- +----------------------------------------------------+ | ??????# ### ##???????????????????????????? | | ??????# #???????????????????????????? | | ??????# " ??????????????????????????? | | ??????# ??????????????????????????? | | ??????# #### ??????????????????????????? | | ?????## ##???#?? ???????????????????????????? | | ????## #?????????????????????????????????????? | | ???## ##?????????????????????????????????????? | | ??## ##??????????????????????????????????????? | | ??# ##???????????????????????????????????????? | | ??# ###??????#####?????????????????????????????? | | ??# ##????##### ##????????????????????????????? | | ?## ##????## ##???????????????????????????? | | ?# ##????# ##??????????????????????????? | | ?# ##???? #######????????????????????? | | ?# #####? ???????#?????????????? | | ?# #?# ??????? ??????????????? | | ?# #??# #??????? ???????????????? | | ?## ## #???# #??????? #???????????????? | | ??###### #????# #?????? #???????????????? | | ???????# #???## #?????? #???????????????? | | ???????# #??## #???#### ### #????????? | | ???????# #?## #???# #????????? | | ???????# #?# ###?# """ ???????????? | | ???????# ### ### ### """ ???????????? | | ???????# ## ## @a #????????????????????? | | ???????# % ###########????????????????????? | | ???????## ### ##??????????????????????????????? | | ????????###?######???????????????????????????????? | | ?????????????????????????????????????????????????? | | ?????????????????????????????????????????????????? | | ?????????????????????????????????????????????????? | | ?????????????????????????????????????????????????? | | ?????????????????????????????????????????????????? | | ?????????????????????????????????????????????????? | | ?????????????????????????????????????????????????? | | ?????????????????????????????????????????????????? | | ?????????????????????????????????????????????????? | | ?????????????????????????????????????????????????? | | ?????????????????????????????????????????????????? | | | | | | | | | | | | | | | | | | | | | +----------------------------------------------------+ Best States ------------- Heat Dissipation 25 Energy Generation 10 Energy Capacity 250 Matter Stores 300 Matter Capacity 300 Sight Range 16 Terrain Scan Density 10 Evasion (%) 50 Launcher Accuracy 20 Recoil Reduction 2 Item Schematics ----------------- None Robot Schematics ------------------ None Fabricated ------------ Nothing Alien Tech Used ----------------- None Achievements -------------- None Challenges ------------ None Game ------ Seed SmallTerrainTearclaws Manual? 0 Play Time 00:08:27 Cumulative 424.7 hours Start 2024.02.25 @ 12:27:09 End 2024.02.25 @ 12:33:40 Sessions 1 Manual Loads 0 Difficulty Rogue Special Mode None Game No. 746 Rogue 591 Adventurer 148 Explorer 7 Win Type - Total 19 Types 16/0/2/1/0/0/0/0/0 Lore% 81 Gallery% 89 Achievement% 72 Wizard Run 0 Options --------- ASCII 0 Keyboard 0 Movement Numpad Keybinds 0 Fullscreen 2 Font 18/SmallcapsGlow Map View 76x50 Tactical HUD 1 Map Filters NONE Filters NONE Steam 1 RUN: ad7ec9e6-0e63-4a0f-8e87-9a5175e7aa6a